[Event "Cairns Cup 2019"]
[Site "Saint Louis"]
[Date "2019.02.06"]
[Round "1.4"]
[White "Harika, Dronavalli"]
[Black "Sebag, Marie"]
[Result "1/2-1/2"]
[ECO "B51"]
[WhiteElo "2471"]
[BlackElo "2476"]
[Annotator "RC"]
[PlyCount "89"]
[EventDate "2019.02.06"]
[EventType "tourn"]
[EventCountry "USA"]
[SourceTitle "playchess.com"]
[Source "ChessBase"]
[SourceQuality "1"]
[TimeControl "40/5400+30:1800+30"]

1. e4 {[%emt 0:00:00]} c5 {[%emt 0:00:00]} 2. Nf3 {[%emt 0:00:00]} d6 {[%emt 0:00:00]} 3. Bb5+ {[%emt 0:00:00]} Nd7 {[%emt 0:00:02]} 4. O-O {[%emt 0:00:43]} a6 {[%emt 0:01:51]} 5. Bd3 {[%emt 0:00:11]} Ngf6 {[%emt 0:03:07]} 6. Re1 {[%emt 0:00:23]} e6 {[%emt 0:08:52]} 7. c3 {[%emt 0:00:31]} b5 {[%emt 0:09:09]} 8. Bc2 {[%emt 0:04:29]} c4 {[%emt 0:03:03]} 9. a4 {[%emt 0:00:26]} Bb7 {[%emt 0:04:43]} 10. d4 {[%emt 0:01:08]} cxd3 {[%emt 0:02:01]} 11. Qxd3 {[%emt 0:00:15]} Nc5 {[%emt 0:09:50]} 12. Qe2 {[%emt 0:00:23]} bxa4 {[%emt 0:00:37]} 13. e5 {[%emt 0:02:56]} dxe5 {[%emt 0:07:20]} 14. Nxe5 {[%emt 0:00:40]} Bd6 {[%emt 0:14:21]} 15. Nd2 {[%emt 0:11:14]} Bxe5 {[%emt 0:07:33]} 16. Qxe5 {[%emt 0:00:23]} Qd5 {[%emt 0:00:50]} 17. Qxd5 {[%emt 0:13:51]} Bxd5 {[%emt 0:06:10]} 18. Bxa4+ {[%emt 0:00:59]} Nxa4 {[%emt 0:00:53]} 19. Rxa4 {[%emt 0:00:07]} O-O {[%emt 0:00:58]} 20. Ra5 {[%emt 0:08:10]} Rfc8 {[%emt 0:02:57]} 21. Nf1 {[%emt 0:09:31]} Bb7 {[%emt 0:02:03]} 22. Be3 {[%emt 0:04:00]} Nd5 {[%emt 0:02:04]} 23. f3 {[%emt 0:02:18]} f6 {[%emt 0:03:24]} 24. Kf2 {[%emt 0:01:57]} e5 {[%emt 0:01:12]} 25. Nd2 {[%emt 0:01:37]} Rab8 {[%emt 0:00:48]} 26. Rea1 {[%emt 0:02:54]} Rd8 {[%emt 0:02:16]} 27. Rc5 {[%emt 0:05:08]} f5 {[%emt 0:02:41]} 28. Nc4 {[%emt 0:03:37]} f4 {[%emt 0:00:29]} 29. Bc1 {[%emt 0:01:37]} e4 {[%emt 0:00:38]} 30. fxe4 {[%emt 0:08:21]} Nf6 {[%emt 0:00:12]} 31. Ke1 {[%emt 0:01:09]} Nxe4 {[%emt 0:02:04]} 32. Re5 {[%emt 0:00:34]} g5 {[%emt 0:01:09]} 33. Nd2 {[%emt 0:04:48]} Re8 {[%emt 0:00:18]} 34. Raa5 {[%emt 0:01:16]} Nxd2 {[%emt 0:01:23]} 35. Bxd2 {[%emt 0:01:46]} h6 {[%emt 0:00:13]} 36. Kf2 {[%emt 0:01:51]} Rxe5 {[%emt 0:00:14]} 37. Rxe5 {[%emt 0:00:08]} Kf7 {[%emt 0:00:25]} 38. c4 {[%emt 0:02:44]} Re8 {[%emt 0:00:33]} 39. Rxe8 {[%emt 0:03:39]} Kxe8 {[%emt 0:00:04]} 40. h4 {[%emt 0:00:00]} Be4 {[%emt 0:00:00]} 41. hxg5 {[%emt 0:01:56]} hxg5 {[%emt 0:02:29]} 42. g3 {[%emt 0:00:03]} fxg3+ {[%emt 0:00:08]} 43. Kxg3 {[%emt 0:00:06]} Bd3 {[%emt 0:00:05]} 44. c5 {[%emt 0:00:05]} Kd7 {[%emt 0:00:13]} 45. Bxg5 {[%emt 0:00:09]} 1/2-1/2

[Event "Cairns Cup 2019"]
[Site "Saint Louis"]
[Date "2019.02.06"]
[Round "1.5"]
[White "Zatonskih, Anna"]
[Black "Abdumalik, Zhansaya"]
[Result "0-1"]
[ECO "D84"]
[WhiteElo "2428"]
[BlackElo "2468"]
[Annotator "ChessBase"]
[PlyCount "72"]
[EventDate "2019.02.06"]
[EventType "tourn"]
[EventCountry "USA"]
[SourceTitle "playchess.com"]
[Source "ChessBase"]
[SourceQuality "1"]
[TimeControl "40/5400+30:1800+30"]

1. d4 {[%emt 0:00:00]} Nf6 {[%emt 0:00:00]} 2. c4 {[%emt 0:00:00]} g6 {[%emt 0:00:00]} 3. Nc3 {[%emt 0:00:52]} d5 {[%emt 0:00:00]} 4. Bf4 {[%emt 0:00:30]} Bg7 {[%emt 0:02:16]} 5. e3 {[%emt 0:00:08]} O-O {[%emt 0:00:28]} 6. cxd5 {[%emt 0:00:20]} Nxd5 {[%emt 0:00:26]} 7. Nxd5 {[%emt 0:00:42]} Qxd5 {[%emt 0:00:03]} 8. Bxc7 {[%emt 0:00:30]} Na6 {[%emt 0:00:40]} 9. Bxa6 {[%emt 0:01:24]} Qxg2 {[%emt 0:00:14]} 10. Qf3 {[%emt 0:00:12]} Qxf3 {[%emt 0:00:07]} 11. Nxf3 {[%emt 0:00:06]} bxa6 {[%emt 0:00:05]} 12. Rc1 {[%emt 0:01:02]} f6 {[%emt 0:03:40]} 13. Rg1 {[%emt 0:15:10]} Rf7 {[%emt 0:05:06]} 14. b3 {[%emt 0:10:18]} Bb7 {[%emt 0:08:01]} 15. Ke2 {[%emt 0:06:29]} Re8 {[%emt 0:10:52]} 16. Rgd1 {[%emt 0:26:18]} e6 {[%emt 0:03:11]} 17. Bd6 {[%emt 0:11:09]} Rd7 {[%emt 0:08:53]} 18. Bc5 {[%emt 0:00:30]} g5 {[%emt 0:02:32]} 19. Nd2 {[%emt 0:00:46]} g4 {[%emt 0:07:45]} 20. Rg1 {[%emt 0:02:36]} h5 {[%emt 0:06:37]} 21. h3 {[%emt 0:04:25]} gxh3 {[%emt 0:08:31]} 22. e4 {[%emt 0:01:23]} e5 {[%emt 0:14:07]} 23. d5 {[%emt 0:00:18]} Rc7 {[%emt 0:02:13]} 24. b4 {[%emt 0:08:06]} a5 {[%emt 0:03:27]} 25. b5 {[%emt 0:02:39]} Rec8 {[%emt 0:03:01]} 26. d6 {[%emt 0:01:37]} Rd7 {[%emt 0:01:47]} 27. Bxa7 {[%emt 0:03:01]} Rxd6 {[%emt 0:04:26]} 28. Be3 {[%emt 0:00:20]} Rxc1 {[%emt 0:01:25]} 29. Rxc1 {[%emt 0:00:03]} f5 {[%emt 0:00:24]} 30. Nc4 {[%emt 0:02:51]} Rd8 {[%emt 0:02:30]} 31. f3 {[%emt 0:01:02]} fxe4 {[%emt 0:00:26]} 32. Nxa5 {[%emt 0:00:23]} exf3+ {[%emt 0:00:41]} 33. Kf2 {[%emt 0:00:05]} Be4 {[%emt 0:00:54]} 34. b6 {[%emt 0:01:06]} Bf6 {[%emt 0:00:52]} 35. Kg3 {[%emt 0:00:07]} Rd3 {[%emt 0:01:04]} 36. Rc4 {[%emt 0:00:55]} Rxe3 {[%emt 0:00:36]} 0-1

[Event "Cairns Cup 2019"]
[Site "Saint Louis"]
[Date "2019.02.07"]
[Round "2.1"]
[White "Krush, Irina"]
[Black "Gunina, Valentina"]
[Result "1/2-1/2"]
[ECO "A06"]
[WhiteElo "2435"]
[BlackElo "2501"]
[Annotator "ChessBase"]
[PlyCount "136"]
[EventDate "2019.02.06"]
[EventType "tourn"]
[EventCountry "USA"]
[SourceTitle "playchess.com"]
[Source "ChessBase"]
[SourceQuality "1"]
[TimeControl "40/5400+30:1800+30"]

1. Nf3 {[%emt 0:00:00]} d5 {[%emt 0:00:00]} 2. g3 {[%emt 0:00:00]} c6 {[%emt 0:00:01]} 3. Bg2 {[%emt 0:00:02]} Bg4 {[%emt 0:00:25]} 4. O-O {[%emt 0:00:18]} Nd7 {[%emt 0:00:27]} 5. d3 {[%emt 0:00:20]} Ngf6 {[%emt 0:01:16]} 6. Nbd2 {[%emt 0:00:25]} e6 {[%emt 0:00:08]} 7. h3 {[%emt 0:02:38]} Bh5 {[%emt 0:00:20]} 8. e4 {[%emt 0:00:22]} Be7 {[%emt 0:48:12]} 9. Qe2 {[%emt 0:00:48]} O-O {[%emt 0:03:39]} 10. e5 {[%emt 0:04:12]} Ne8 {[%emt 0:03:23]} 11. c3 {[%emt 0:00:23]} c5 {[%emt 0:00:36]} 12. Rd1 {[%emt 0:05:53]} Nc7 {[%emt 0:08:44]} 13. Nf1 {[%emt 0:01:37]} b5 {[%emt 0:00:50]} 14. Bf4 {[%emt 0:04:02]} a5 {[%emt 0:11:24]} 15. h4 {[%emt 0:15:13]} a4 {[%emt 0:04:04]} 16. N1h2 {[%emt 0:08:43]} Bg6 {[%emt 0:00:27]} 17. Ne1 {[%emt 0:02:45]} h6 {[%emt 0:01:20]} 18. h5 {[%emt 0:01:22]} Bh7 {[%emt 0:00:19]} 19. a3 {[%emt 0:06:54]} Bg5 {[%emt 0:03:17]} 20. Bxg5 {[%emt 0:05:45]} Qxg5 {[%emt 0:00:09]} 21. d4 {[%emt 0:00:37]} cxd4 {[%emt 0:06:14]} 22. cxd4 {[%emt 0:00:26]} Nb6 {[%emt 0:00:01]} 23. Ng4 {[%emt 0:02:03]} Kh8 {[%emt 0:01:02]} 24. Ne3 {[%emt 0:09:57]} Nc4 {[%emt 0:00:04]} 25. Rac1 {[%emt 0:00:28]} Rab8 {[%emt 0:01:09]} 26. Rc3 {[%emt 0:01:29]} Qe7 {[%emt 0:00:10]} 27. f4 {[%emt 0:05:49]} b4 {[%emt 0:00:26]} 28. axb4 {[%emt 0:00:44]} Nxe3 {[%emt 0:00:03]} 29. Qxe3 {[%emt 0:01:42]} Rxb4 {[%emt 0:00:25]} 30. Rd2 {[%emt 0:10:45]} Nb5 {[%emt 0:01:01]} 31. Rc1 {[%emt 0:01:09]} Rb3 {[%emt 0:00:53]} 32. Qf2 {[%emt 0:00:15]} Qb4 {[%emt 0:00:37]} 33. Nf3 {[%emt 0:03:01]} Be4 {[%emt 0:00:05]} 34. Nh4 {[%emt 0:00:14]} a3 {[%emt 0:01:13]} 35. bxa3 {[%emt 0:00:31]} Qxa3 {[%emt 0:00:01]} 36. Rc5 {[%emt 0:00:57]} Bxg2 {[%emt 0:01:03]} 37. Kxg2 {[%emt 0:05:35]} Nc3 {[%emt 0:00:19]} 38. Rxc3 {[%emt 0:00:55]} Rxc3 {[%emt 0:00:02]} 39. f5 {[%emt 0:00:38]} Rfc8 {[%emt 0:03:51]} 40. fxe6 {[%emt 0:00:00]} fxe6 {[%emt 0:00:00]} 41. Ng6+ {[%emt 0:00:54]} Kh7 {[%emt 0:02:51]} 42. Qf4 {[%emt 0:07:26]} Rc2 {[%emt 0:03:52]} 43. Rxc2 {[%emt 0:00:51]} Rxc2+ {[%emt 0:00:02]} 44. Kh3 {[%emt 0:00:23]} Qc1 {[%emt 0:11:09]} 45. Nf8+ {[%emt 0:06:55]} Kg8 {[%emt 0:00:16]} 46. Nxe6 {[%emt 0:00:09]} Qh1+ {[%emt 0:11:51]} 47. Kg4 {[%emt 0:00:07]} Qd1+ {[%emt 0:00:42]} 48. Qf3 {[%emt 0:00:18]} Qxf3+ {[%emt 0:01:19]} 49. Kxf3 {[%emt 0:00:08]} Rc3+ {[%emt 0:00:03]} 50. Kg4 {[%emt 0:05:26]} Rd3 {[%emt 0:01:17]} 51. Kf5 {[%emt 0:01:28]} Kf7 {[%emt 0:01:16]} 52. g4 {[%emt 0:00:57]} Ke7 {[%emt 0:02:48]} 53. Nxg7 {[%emt 0:01:36]} Rxd4 {[%emt 0:00:27]} 54. g5 {[%emt 0:04:34]} hxg5 {[%emt 0:00:39]} 55. h6 {[%emt 0:03:45]} Rh4 {[%emt 0:00:41]} 56. Kg6 {[%emt 0:03:10]} Ra4 {[%emt 0:00:31]} 57. Kxg5 {[%emt 0:00:40]} Ra8 {[%emt 0:00:32]} 58. h7 {[%emt 0:00:44]} Kf7 {[%emt 0:00:24]} 59. Kh6 {[%emt 0:00:22]} d4 {[%emt 0:00:34]} 60. e6+ {[%emt 0:00:26]} Kf6 {[%emt 0:00:29]} 61. Nh5+ {[%emt 0:00:38]} Kxe6 {[%emt 0:00:21]} 62. Kg7 {[%emt 0:00:05]} Kf5 {[%emt 0:00:42]} 63. Ng3+ {[%emt 0:00:19]} Kf4 {[%emt 0:00:29]} 64. Ne2+ {[%emt 0:00:14]} Kg5 {[%emt 0:00:20]} 65. h8=Q {[%emt 0:01:04]} Rxh8 {[%emt 0:00:02]} 66. Kxh8 {[%emt 0:00:09]} d3 {[%emt 0:00:07]} 67. Nc3 {[%emt 0:00:12]} Kf4 {[%emt 0:00:06]} 68. Kg7 {[%emt 0:00:11]} d2 {[%emt 0:00:07]} 1/2-1/2

[Event "Cairns Cup 2019"]
[Site "Saint Louis"]
[Date "2019.02.07"]
[Round "2.5"]
[White "Khotenashvili, Bela"]
[Black "Paehtz, Elisabeth"]
[Result "1-0"]
[ECO "A11"]
[WhiteElo "2491"]
[BlackElo "2466"]
[Annotator "ChessBase"]
[PlyCount "109"]
[EventDate "2019.02.06"]
[EventType "tourn"]
[EventCountry "USA"]
[SourceTitle "playchess.com"]
[Source "ChessBase"]
[SourceQuality "1"]
[TimeControl "40/5400+30:1800+30"]

1. c4 {[%emt 0:00:00]} c6 {[%emt 0:00:00]} 2. Nf3 {[%emt 0:00:16]} d5 {[%emt 0:00:00]} 3. e3 {[%emt 0:00:05]} Nf6 {[%emt 0:00:00]} 4. b3 {[%emt 0:00:16]} g6 {[%emt 0:02:46]} 5. Bb2 {[%emt 0:00:58]} Bg7 {[%emt 0:00:05]} 6. Be2 {[%emt 0:01:05]} O-O {[%emt 0:00:08]} 7. O-O {[%emt 0:00:18]} a6 {[%emt 0:02:40]} 8. Nc3 {[%emt 0:05:57]} Re8 {[%emt 0:01:06]} 9. d4 {[%emt 0:02:08]} b5 {[%emt 0:26:55]} 10. Ne5 {[%emt 0:07:46]} e6 {[%emt 0:03:49]} 11. Rc1 {[%emt 0:08:18]} Nfd7 {[%emt 0:00:11]} 12. Nxd7 {[%emt 0:26:22]} Nxd7 {[%emt 0:00:20]} 13. Bf3 {[%emt 0:02:37]} Rb8 {[%emt 0:08:12]} 14. Ba1 {[%emt 0:03:44]} bxc4 {[%emt 0:19:51]} 15. bxc4 {[%emt 0:00:44]} a5 {[%emt 0:00:27]} 16. Re1 {[%emt 0:13:46]} Ba6 {[%emt 0:00:20]} 17. c5 {[%emt 0:00:37]} f5 {[%emt 0:06:02]} 18. Be2 {[%emt 0:05:22]} Bxe2 {[%emt 0:00:21]} 19. Nxe2 {[%emt 0:00:05]} e5 {[%emt 0:00:40]} 20. Rb1 {[%emt 0:07:04]} Rxb1 {[%emt 0:00:21]} 21. Qxb1 {[%emt 0:00:02]} Qc7 {[%emt 0:00:28]} 22. Qc2 {[%emt 0:00:41]} f4 {[%emt 0:11:44]} 23. dxe5 {[%emt 0:05:59]} Bxe5 {[%emt 0:00:04]} 24. exf4 {[%emt 0:01:27]} Bxf4 {[%emt 0:00:46]} 25. g3 {[%emt 0:01:58]} Bg5 {[%emt 0:00:12]} 26. Rb1 {[%emt 0:01:50]} Bf6 {[%emt 0:00:32]} 27. Bxf6 {[%emt 0:02:14]} Nxf6 {[%emt 0:00:05]} 28. Nd4 {[%emt 0:00:10]} Nd7 {[%emt 0:02:11]} 29. Kg2 {[%emt 0:01:25]} Re4 {[%emt 0:02:16]} 30. Qc3 {[%emt 0:00:22]} Qe5 {[%emt 0:02:15]} 31. Rd1 {[%emt 0:00:07]} Qc7 {[%emt 0:02:50]} 32. Qc1 {[%emt 0:01:41]} Nf8 {[%emt 0:01:35]} 33. h4 {[%emt 0:00:21]} Ne6 {[%emt 0:00:56]} 34. Nxe6 {[%emt 0:00:06]} Rxe6 {[%emt 0:00:04]} 35. Qd2 {[%emt 0:00:47]} a4 {[%emt 0:02:26]} 36. Rb1 {[%emt 0:00:22]} Re4 {[%emt 0:01:11]} 37. Rb6 {[%emt 0:00:25]} Re8 {[%emt 0:01:44]} 38. Qd4 {[%emt 0:00:34]} Rb8 {[%emt 0:01:27]} 39. Rxb8+ {[%emt 0:00:44]} Qxb8 {[%emt 0:00:04]} 40. Qxa4 {[%emt 0:00:00]} Qc8 {[%emt 0:00:00]} 41. Qd4 {[%emt 0:04:34]} Qa6 {[%emt 0:01:57]} 42. a4 {[%emt 0:09:32]} Qa5 {[%emt 0:00:14]} 43. g4 {[%emt 0:00:26]} Kf7 {[%emt 0:07:42]} 44. h5 {[%emt 0:03:15]} gxh5 {[%emt 0:00:29]} 45. gxh5 {[%emt 0:00:12]} Qa6 {[%emt 0:02:36]} 46. Qg4 {[%emt 0:06:27]} Kf6 {[%emt 0:02:20]} 47. h6 {[%emt 0:01:49]} Ke5 {[%emt 0:04:17]} 48. Qg7+ {[%emt 0:04:13]} Kf4 {[%emt 0:00:05]} 49. Qxh7 {[%emt 0:00:25]} Qxa4 {[%emt 0:00:11]} 50. Qg6 {[%emt 0:01:41]} Qd1 {[%emt 0:00:20]} 51. h7 {[%emt 0:01:23]} Qf3+ {[%emt 0:00:07]} 52. Kg1 {[%emt 0:00:01]} Qd1+ {[%emt 0:00:29]} 53. Kh2 {[%emt 0:00:02]} Qd4 {[%emt 0:00:44]} 54. Qh6+ {[%emt 0:01:17]} Kg4 {[%emt 0:00:39]} 55. Qh3+ {[%emt 0:00:15]} 1-0

[Event "Cairns Cup 2019"]
[Site "Saint Louis"]
[Date "2019.02.15"]
[Round "9.3"]
[White "Khotenashvili, Bela"]
[Black "Dzagnidze, Nana"]
[Result "0-1"]
[ECO "D00"]
[WhiteElo "2491"]
[BlackElo "2513"]
[Annotator "RC"]
[PlyCount "106"]
[EventDate "2019.02.06"]
[EventType "tourn"]
[EventCountry "USA"]
[SourceTitle "playchess.com"]
[Source "ChessBase"]
[SourceQuality "1"]
[TimeControl "40/5400+30:1800+30"]

1. d4 {[%emt 0:00:00]} d5 {[%emt 0:00:00]} 2. Bf4 {[%emt 0:00:00]} Nf6 {[%emt 0:00:00]} 3. e3 {[%emt 0:00:00]} e6 {[%emt 0:00:46]} 4. Nf3 {[%emt 0:00:46]} Bd6 {[%emt 0:00:50]} 5. Bg3 {[%emt 0:00:17]} O-O {[%emt 0:04:18]} 6. Nbd2 {[%emt 0:01:30]} b6 {[%emt 0:00:30]} 7. c3 {[%emt 0:00:48]} Bb7 {[%emt 0:01:45]} 8. Bd3 {[%emt 0:00:34]} Ne4 {[%emt 0:00:46]} 9. Qc2 {[%emt 0:19:45]} f5 {[%emt 0:01:52]} 10. Ne5 {[%emt 0:01:54]} Nd7 {[%emt 0:16:26]} 11. Nxd7 {[%emt 0:11:24]} Qxd7 {[%emt 0:01:21]} 12. Bxd6 {[%emt 0:07:19]} cxd6 {[%emt 0:11:02]} 13. f3 {[%emt 0:02:35]} Nxd2 {[%emt 0:14:10]} 14. Qxd2 {[%emt 0:00:30]} e5 {[%emt 0:01:46]} 15. O-O-O {[%emt 0:05:57]} e4 {[%emt 0:04:50]} 16. Be2 {[%emt 0:03:26]} a5 {[%emt 0:00:20]} 17. Rhf1 {[%emt 0:07:13]} Ba6 {[%emt 0:07:29]} 18. Bxa6 {[%emt 0:10:31]} Rxa6 {[%emt 0:00:01]} 19. fxe4 {[%emt 0:05:02]} dxe4 {[%emt 0:00:18]} 20. d5 {[%emt 0:00:32]} Raa8 {[%emt 0:10:35]} 21. Rf2 {[%emt 0:01:18]} b5 {[%emt 0:01:26]} 22. Kb1 {[%emt 0:03:50]} Rfe8 {[%emt 0:07:04]} 23. Qd4 {[%emt 0:02:19]} Rac8 {[%emt 0:03:53]} 24. Qb6 {[%emt 0:06:46]} a4 {[%emt 0:01:04]} 25. a3 {[%emt 0:01:47]} Re5 {[%emt 0:00:55]} 26. g3 {[%emt 0:04:44]} h6 {[%emt 0:00:55]} 27. Rd4 {[%emt 0:00:14]} Rc5 {[%emt 0:00:36]} 28. Rfd2 {[%emt 0:00:43]} Qc7 {[%emt 0:04:20]} 29. Qxc7 {[%emt 0:01:46]} Rxc7 {[%emt 0:00:02]} 30. c4 {[%emt 0:00:48]} bxc4 {[%emt 0:00:24]} 31. Rc2 {[%emt 0:00:31]} Kf7 {[%emt 0:01:43]} 32. Kc1 {[%emt 0:00:33]} g5 {[%emt 0:00:58]} 33. Rcxc4 {[%emt 0:00:18]} Rxc4+ {[%emt 0:00:07]} 34. Rxc4 {[%emt 0:00:02]} Rxd5 {[%emt 0:00:04]} 35. Rxa4 {[%emt 0:00:05]} Rd3 {[%emt 0:00:12]} 36. Rd4 {[%emt 0:01:36]} Rxe3 {[%emt 0:00:57]} 37. Rxd6 {[%emt 0:00:03]} f4 {[%emt 0:00:10]} 38. gxf4 {[%emt 0:00:38]} gxf4 {[%emt 0:00:02]} 39. Kd2 {[%emt 0:00:46]} Rf3 {[%emt 0:03:14]} 40. Ke2 {[%emt 0:00:00]} Rh3 {[%emt 0:00:00]} 41. Rd4 {[%emt 0:03:48]} Re3+ {[%emt 0:05:10]} 42. Kf2 {[%emt 0:03:01]} Ke6 {[%emt 0:00:25]} 43. a4 {[%emt 0:02:39]} Ke5 {[%emt 0:00:05]} 44. Rb4 {[%emt 0:00:07]} Rf3+ {[%emt 0:03:41]} 45. Ke1 {[%emt 0:14:54]} Re3+ {[%emt 0:05:05]} 46. Kf1 {[%emt 0:00:33]} f3 {[%emt 0:01:39]} 47. a5 {[%emt 0:01:21]} Rd3 {[%emt 0:01:05]} 48. Kf2 {[%emt 0:02:36]} Rd2+ {[%emt 0:02:33]} 49. Kg3 {[%emt 0:01:27]} Rg2+ {[%emt 0:00:30]} 50. Kh3 {[%emt 0:00:42]} Rg1 {[%emt 0:06:07]} 51. Rb5+ {[%emt 0:00:21]} Kf4 {[%emt 0:00:04]} 52. Rb8 {[%emt 0:00:29]} f2 {[%emt 0:00:31]} 53. Rf8+ {[%emt 0:00:11]} Ke3 0-1

[Event "Cairns Cup 2019"]
[Site "Saint Louis"]
[Date "2019.02.15"]
[Round "9.4"]
[White "Abdumalik, Zhansaya"]
[Black "Paehtz, Elisabeth"]
[Result "1-0"]
[ECO "C97"]
[WhiteElo "2468"]
[BlackElo "2466"]
[Annotator "RC"]
[PlyCount "103"]
[EventDate "2019.02.06"]
[EventType "tourn"]
[EventCountry "USA"]
[SourceTitle "playchess.com"]
[Source "ChessBase"]
[SourceQuality "1"]
[TimeControl "40/5400+30:1800+30"]

1. e4 {[%emt 0:00:00]} e5 {[%emt 0:00:00]} 2. Nf3 {[%emt 0:00:00]} Nc6 {[%emt 0:00:00]} 3. Bb5 {[%emt 0:00:04]} a6 {[%emt 0:00:00]} 4. Ba4 {[%emt 0:00:08]} Nf6 {[%emt 0:00:00]} 5. O-O {[%emt 0:00:09]} Be7 {[%emt 0:00:16]} 6. Re1 {[%emt 0:00:07]} b5 {[%emt 0:00:03]} 7. Bb3 {[%emt 0:00:07]} d6 {[%emt 0:00:02]} 8. c3 {[%emt 0:00:11]} O-O {[%emt 0:00:06]} 9. h3 {[%emt 0:00:04]} Na5 {[%emt 0:00:02]} 10. Bc2 {[%emt 0:00:11]} c5 {[%emt 0:00:03]} 11. d4 {[%emt 0:00:39]} Qc7 {[%emt 0:00:06]} 12. d5 {[%emt 0:02:13]} Bd7 {[%emt 0:00:17]} 13. Nbd2 {[%emt 0:02:19]} c4 {[%emt 0:02:33]} 14. Nf1 {[%emt 0:03:54]} Rfc8 {[%emt 0:02:38]} 15. g4 {[%emt 0:05:34]} Nb7 {[%emt 0:03:24]} 16. Ng3 {[%emt 0:03:55]} g6 {[%emt 0:08:24]} 17. Bh6 {[%emt 0:05:54]} Ne8 {[%emt 0:12:18]} 18. Kh2 {[%emt 0:10:44]} a5 {[%emt 0:07:08]} 19. Qd2 {[%emt 0:05:12]} b4 {[%emt 0:01:13]} 20. Rg1 {[%emt 0:03:39]} bxc3 {[%emt 0:09:13]} 21. bxc3 {[%emt 0:01:01]} Nc5 {[%emt 0:00:07]} 22. Be3 {[%emt 0:06:16]} Rab8 {[%emt 0:07:03]} 23. Rab1 {[%emt 0:01:20]} Bd8 {[%emt 0:03:13]} 24. Rxb8 {[%emt 0:04:41]} Rxb8 {[%emt 0:00:05]} 25. Rb1 {[%emt 0:00:21]} Rxb1 {[%emt 0:00:55]} 26. Bxb1 {[%emt 0:00:11]} Bb5 {[%emt 0:04:37]} 27. Qb2 {[%emt 0:03:02]} Ba6 {[%emt 0:00:32]} 28. Qa3 {[%emt 0:01:14]} Nd3 {[%emt 0:15:52]} 29. Bxd3 {[%emt 0:05:08]} cxd3 {[%emt 0:00:03]} 30. Nd2 {[%emt 0:00:20]} Nf6 {[%emt 0:00:27]} 31. c4 {[%emt 0:03:47]} Nd7 {[%emt 0:02:43]} 32. Kg2 {[%emt 0:06:24]} Bxc4 {[%emt 0:08:53]} 33. Nxc4 {[%emt 0:00:29]} Qxc4 {[%emt 0:00:03]} 34. Qxd6 {[%emt 0:00:09]} Qa4 {[%emt 0:00:01]} 35. Qa6 {[%emt 0:04:21]} Kf8 {[%emt 0:10:11]} 36. Qxd3 {[%emt 0:07:24]} Qxa2 {[%emt 0:00:03]} 37. Qb5 {[%emt 0:01:42]} Ke8 {[%emt 0:00:34]} 38. Nf1 {[%emt 0:00:49]} Qc2 {[%emt 0:01:56]} 39. Nd2 {[%emt 0:02:40]} a4 {[%emt 0:00:31]} 40. Qa6 {[%emt 0:00:00]} Be7 {[%emt 0:00:00]} 41. Qa8+ {[%emt 0:09:53]} Bd8 {[%emt 0:02:04]} 42. Qa6 {[%emt 0:00:03]} Be7 {[%emt 0:01:16]} 43. Qa8+ {[%emt 0:03:15]} Bd8 {[%emt 0:00:04]} 44. Bg5 {[%emt 0:02:46]} f6 {[%emt 0:00:43]} 45. Be3 {[%emt 0:00:41]} g5 {[%emt 0:05:01]} 46. Kh2 {[%emt 0:06:33]} Nf8 {[%emt 0:05:24]} 47. Qa6 {[%emt 0:10:36]} Be7 {[%emt 0:03:04]} 48. Nc4 {[%emt 0:00:55]} Kf7 {[%emt 0:03:00]} 49. d6 {[%emt 0:00:27]} Bd8 {[%emt 0:00:11]} 50. Qc8 {[%emt 0:01:22]} Qxe4 {[%emt 0:01:50]} 51. Qxd8 {[%emt 0:00:18]} Qxc4 {[%emt 0:00:05]} 52. Qc7+ {[%emt 0:00:08]} 1-0